[Event "*** Titled Tuesday Blitz"]
[Site "Chess.com"]
[Date "2021.04.20"]
[Round "3"]
[White "suneebaker"]
[Black "dpopadic"]
[Result "0-1"]
[WhiteElo "2211"]
[BlackElo "2382"]
[TimeControl "180+1"]
[EndTime "10:28:11 PDT"]
[Termination "dpopadic won by resignation"]

1. e4 {[%clk 0:03:00.9]} 1... c5 {[%clk 0:02:58.2]} 2. Nf3 {[%clk 0:03:00.7]}
2... Nc6 {[%clk 0:02:57.1]} 3. Bb5 {[%clk 0:02:59.2]} 3... e5 {[%clk 0:02:56.5]}
4. O-O {[%clk 0:02:57.6]} 4... d6 {[%clk 0:02:56.4]} 5. c3 {[%clk 0:02:57.3]}
5... Bd7 {[%clk 0:02:56.5]} 6. Re1 {[%clk 0:02:55.3]} 6... a6 {[%clk 0:02:54.9]}
7. Bf1 {[%clk 0:02:54.2]} 7... Nf6 {[%clk 0:02:54.5]} 8. h3 {[%clk 0:02:53.8]}
8... Be7 {[%clk 0:02:54.5]} 9. d4 {[%clk 0:02:53.5]} 9... Qc7 {[%clk 0:02:53.8]}
10. d5 {[%clk 0:02:52.2]} 10... Na7 {[%clk 0:02:43.8]} 11. a4 {[%clk 0:02:50.7]}
11... Nc8 {[%clk 0:02:42.5]} 12. Nbd2 {[%clk 0:02:49.3]} 12... Rb8 {[%clk
0:02:38.3]} 13. a5 {[%clk 0:02:47.4]} 13... O-O {[%clk 0:02:31.9]} 14. Nc4
{[%clk 0:02:45.5]} 14... Ne8 {[%clk 0:02:29.6]} 15. Be3 {[%clk 0:02:28.5]} 15...
f5 {[%clk 0:02:21.8]} 16. exf5 {[%clk 0:02:27.3]} 16... Bxf5 {[%clk 0:02:21.5]}
17. Nb6 {[%clk 0:02:20.3]} 17... Nxb6 {[%clk 0:02:20.1]} 18. axb6 {[%clk
0:02:19.3]} 18... Qd7 {[%clk 0:02:13.4]} 19. c4 {[%clk 0:02:14.6]} 19... Rc8
{[%clk 0:02:09.5]} 20. Bg5 {[%clk 0:02:10.6]} 20... h6 {[%clk 0:01:57.1]} 21.
Bxe7 {[%clk 0:02:09.6]} 21... Qxe7 {[%clk 0:01:57.2]} 22. Bd3 {[%clk 0:02:05.9]}
22... Bd7 {[%clk 0:01:49.5]} 23. Bc2 {[%clk 0:02:00.6]} 23... Nf6 {[%clk
0:01:20]} 24. Nh4 {[%clk 0:01:55.5]} 24... Qf7 {[%clk 0:01:19]} 25. Ng6 {[%clk
0:01:53.9]} 25... Rfe8 {[%clk 0:01:18.1]} 26. Qd2 {[%clk 0:01:43.6]} 26... e4
{[%clk 0:01:16.5]} 27. Nf4 {[%clk 0:01:41.4]} 27... g5 {[%clk 0:01:03.7]} 28.
Ne2 {[%clk 0:01:37.8]} 28... Re5 {[%clk 0:00:58]} 29. Ng3 {[%clk 0:01:36.3]}
29... Rce8 {[%clk 0:00:56.4]} 30. Re3 {[%clk 0:01:34.3]} 30... h5 {[%clk
0:00:49.4]} 31. Rae1 {[%clk 0:01:33]} 31... Qg6 {[%clk 0:00:30]} 32. Ne2 {[%clk
0:01:27.7]} 32... Bf5 {[%clk 0:00:24.9]} 33. Nc3 {[%clk 0:01:26.1]} 33... g4
{[%clk 0:00:24.2]} 34. h4 {[%clk 0:01:21.4]} 34... Qg7 {[%clk 0:00:16.6]} 35. g3
{[%clk 0:01:21.1]} 35... Bh7 {[%clk 0:00:15.7]} 36. Ne2 {[%clk 0:01:20.7]} 36...
Qf7 {[%clk 0:00:14.3]} 37. Nf4 {[%clk 0:01:15.7]} 37... Qd7 {[%clk 0:00:13.8]}
38. Qd1 {[%clk 0:01:13.1]} 38... Qd8 {[%clk 0:00:12.9]} 39. b4 {[%clk
0:01:10.5]} 39... cxb4 {[%clk 0:00:12]} 40. Qd4 {[%clk 0:01:10.2]} 40... a5
{[%clk 0:00:08.5]} 41. c5 {[%clk 0:01:06.6]} 41... dxc5 {[%clk 0:00:08]} 42.
Qxc5 {[%clk 0:01:06.6]} 42... Nd7 {[%clk 0:00:05.7]} 43. Qxa5 {[%clk 0:01:05.6]}
43... Qxb6 {[%clk 0:00:05.6]} 44. Qxb6 {[%clk 0:01:02.5]} 44... Nxb6 {[%clk
0:00:05.6]} 45. Rb1 {[%clk 0:01:02.8]} 45... Nc4 {[%clk 0:00:04.8]} 46. Re2
{[%clk 0:01:02.6]} 46... Na3 {[%clk 0:00:04.8]} 47. Rxb4 {[%clk 0:01:01.3]}
47... Nxc2 {[%clk 0:00:04.6]} 48. Rxc2 {[%clk 0:01:01.2]} 48... e3 {[%clk
0:00:04.8]} 49. fxe3 {[%clk 0:01:00.3]} 49... Bxc2 {[%clk 0:00:03.6]} 50. Rxb7
{[%clk 0:00:59.3]} 50... Be4 {[%clk 0:00:04.2]} 51. d6 {[%clk 0:00:57.4]} 51...
Rd8 {[%clk 0:00:03.5]} 52. Nxh5 {[%clk 0:00:56.5]} 52... Bxb7 {[%clk 0:00:03.3]}
53. Nf6+ {[%clk 0:00:55.9]} 53... Kf7 {[%clk 0:00:02.6]} 54. Nxg4 {[%clk
0:00:55.8]} 54... Re6 {[%clk 0:00:03.5]} 55. Kf2 {[%clk 0:00:54.6]} 55... Rdxd6
{[%clk 0:00:04.1]} 56. h5 {[%clk 0:00:54.8]} 56... Rf6+ {[%clk 0:00:04.5]} 57.
Nxf6 {[%clk 0:00:54.4]} 57... Kxf6 {[%clk 0:00:03.2]} 58. g4 {[%clk 0:00:53.3]}
58... Kg5 {[%clk 0:00:04.1]} 59. Kg3 {[%clk 0:00:53]} 59... Kh6 {[%clk 0:00:05]}
60. Kh4 {[%clk 0:00:52.4]} 60... Rd5 {[%clk 0:00:05.9]} 61. e4 {[%clk
0:00:51.7]} 61... Rc5 {[%clk 0:00:06.8]} 62. e5 {[%clk 0:00:51]} 62... Rb5
{[%clk 0:00:07.7]} 63. g5+ {[%clk 0:00:50.6]} 63... Kg7 {[%clk 0:00:06.4]} 64.
e6 {[%clk 0:00:50.4]} 64... Re5 {[%clk 0:00:04.9]} 65. h6+ {[%clk 0:00:46.6]}
65... Kg6 {[%clk 0:00:04.4]} 0-1

[Event "*** Titled Tuesday Blitz"]
[Site "Chess.com"]
[Date "2021.04.20"]
[Round "3"]
[White "ural58"]
[Black "Zmof"]
[Result "1-0"]
[WhiteElo "2457"]
[BlackElo "2227"]
[TimeControl "180+1"]
[EndTime "10:28:11 PDT"]
[Termination "ural58 won by resignation"]

1. e4 {[%clk 0:02:52.9]} 1... c5 {[%clk 0:02:52.7]} 2. b3 {[%clk 0:02:52.1]}
2... Nc6 {[%clk 0:02:51.1]} 3. Bb2 {[%clk 0:02:51.4]} 3... Nf6 {[%clk
0:02:51.4]} 4. e5 {[%clk 0:02:50.2]} 4... Nd5 {[%clk 0:02:50.9]} 5. Nf3 {[%clk
0:02:49.9]} 5... d6 {[%clk 0:02:48.6]} 6. Bb5 {[%clk 0:02:48.9]} 6... Bg4 {[%clk
0:02:46.3]} 7. O-O {[%clk 0:02:41.2]} 7... e6 {[%clk 0:02:36.5]} 8. h3 {[%clk
0:02:37.8]} 8... Bh5 {[%clk 0:02:32.2]} 9. Bxc6+ {[%clk 0:02:36.4]} 9... bxc6
{[%clk 0:02:31.9]} 10. exd6 {[%clk 0:02:37.1]} 10... Qxd6 {[%clk 0:02:31.2]} 11.
Na3 {[%clk 0:02:33.6]} 11... Be7 {[%clk 0:02:18.1]} 12. Nc4 {[%clk 0:02:30.2]}
12... Qf4 {[%clk 0:02:13.7]} 13. Be5 {[%clk 0:02:14.2]} 13... Bxf3 {[%clk
0:02:04.3]} 14. Qxf3 {[%clk 0:02:07.6]} 14... Qxf3 {[%clk 0:02:02.5]} 15. gxf3
{[%clk 0:02:08.5]} 15... O-O {[%clk 0:01:57.4]} 16. Rfe1 {[%clk 0:02:03.2]}
16... f6 {[%clk 0:01:53.1]} 17. Bd6 {[%clk 0:02:03]} 17... Kf7 {[%clk 0:01:49]}
18. c3 {[%clk 0:01:53.1]} 18... Nb6 {[%clk 0:01:39]} 19. Bxe7 {[%clk 0:01:49]}
19... Kxe7 {[%clk 0:01:37.2]} 20. Na5 {[%clk 0:01:46.4]} 20... Kd7 {[%clk
0:01:32.5]} 21. Re4 {[%clk 0:01:43.6]} 21... Rfe8 {[%clk 0:01:26.9]} 22. Rae1
{[%clk 0:01:39.3]} 22... Rab8 {[%clk 0:01:17.2]} 23. f4 {[%clk 0:01:35.4]} 23...
Nd5 {[%clk 0:01:13.6]} 24. Kg2 {[%clk 0:01:26]} 24... Rb5 {[%clk 0:01:04.5]} 25.
Ra4 {[%clk 0:01:25.1]} 25... Nb6 {[%clk 0:01:02.5]} 26. Ra3 {[%clk 0:01:21.6]}
26... Rb8 {[%clk 0:00:53.5]} 27. Re4 {[%clk 0:01:16.1]} 27... f5 {[%clk
0:00:47.5]} 28. Re5 {[%clk 0:01:10.6]} 28... Kd6 {[%clk 0:00:46.4]} 29. d4
{[%clk 0:00:51.5]} 29... cxd4 {[%clk 0:00:44]} 30. cxd4 {[%clk 0:00:52.4]} 30...
Rxe5 {[%clk 0:00:34.8]} 31. dxe5+ {[%clk 0:00:51.9]} 31... Kd5 {[%clk
0:00:35.1]} 32. b4 {[%clk 0:00:46.9]} 32... Nc4 {[%clk 0:00:30.1]} 33. Nxc4
{[%clk 0:00:19.6]} 33... Kxc4 {[%clk 0:00:29.9]} 34. Rxa7 {[%clk 0:00:20.5]}
34... Rxb4 {[%clk 0:00:26.9]} 35. Rxg7 {[%clk 0:00:19.6]} 35... c5 {[%clk
0:00:25.3]} 36. Rxh7 {[%clk 0:00:19.5]} 36... Kd3 {[%clk 0:00:23.3]} 37. Re7
{[%clk 0:00:18]} 37... c4 {[%clk 0:00:20.9]} 38. Rxe6 {[%clk 0:00:18.1]} 38...
c3 {[%clk 0:00:21.5]} 39. Rc6 {[%clk 0:00:16.3]} 39... Rc4 {[%clk 0:00:21.6]}
40. Rxc4 {[%clk 0:00:16]} 40... Kxc4 {[%clk 0:00:21.1]} 41. e6 {[%clk
0:00:16.9]} 41... c2 {[%clk 0:00:21]} 42. e7 {[%clk 0:00:17.8]} 42... c1=Q
{[%clk 0:00:20.2]} 43. e8=Q {[%clk 0:00:17.7]} 43... Kb4 {[%clk 0:00:11.8]} 44.
Qb8+ {[%clk 0:00:15.4]} 44... Ka4 {[%clk 0:00:10.3]} 45. Qb3+ {[%clk 0:00:15]}
45... Ka5 {[%clk 0:00:10.7]} 46. Qd5+ {[%clk 0:00:13.6]} 46... Ka6 {[%clk
0:00:10.9]} 47. Qxf5 {[%clk 0:00:13.2]} 47... Qc6+ {[%clk 0:00:09.6]} 48. Kg3
{[%clk 0:00:13.1]} 48... Qc3+ {[%clk 0:00:09.5]} 49. Kh4 {[%clk 0:00:12.9]}
49... Qh8+ {[%clk 0:00:08.5]} 50. Kg5 {[%clk 0:00:13.1]} 50... Qd4 {[%clk
0:00:04]} 51. Qf6+ {[%clk 0:00:13.1]} 1-0

[Event "*** Titled Tuesday Blitz"]
[Site "Chess.com"]
[Date "2021.04.20"]
[Round "3"]
[White "Harry_Rakkel"]
[Black "Sychev_Klementy"]
[Result "0-1"]
[WhiteElo "2599"]
[BlackElo "2899"]
[TimeControl "180+1"]
[EndTime "10:28:13 PDT"]
[Termination "Sychev_Klementy won on time"]

1. Nf3 {[%clk 0:03:00.9]} 1... d5 {[%clk 0:02:56.1]} 2. c4 {[%clk 0:02:59.5]}
2... d4 {[%clk 0:02:51.3]} 3. b4 {[%clk 0:02:55.8]} 3... c5 {[%clk 0:02:39.2]}
4. bxc5 {[%clk 0:02:50.3]} 4... Nc6 {[%clk 0:02:38.6]} 5. Ba3 {[%clk 0:02:36.3]}
5... e5 {[%clk 0:02:36.6]} 6. d3 {[%clk 0:02:35.5]} 6... Bxc5 {[%clk 0:02:31.1]}
7. Bxc5 {[%clk 0:02:36.4]} 7... Qa5+ {[%clk 0:02:31.3]} 8. Nbd2 {[%clk
0:02:36.2]} 8... Qxc5 {[%clk 0:02:31.4]} 9. g3 {[%clk 0:02:36]} 9... Nf6 {[%clk
0:02:31.5]} 10. Bg2 {[%clk 0:02:36]} 10... O-O {[%clk 0:02:31.9]} 11. O-O {[%clk
0:02:36]} 11... h6 {[%clk 0:02:28]} 12. Qb3 {[%clk 0:02:32.5]} 12... Re8 {[%clk
0:02:26.2]} 13. Rab1 {[%clk 0:02:28.4]} 13... Rb8 {[%clk 0:02:18.1]} 14. Ne1
{[%clk 0:02:01]} 14... Bg4 {[%clk 0:02:06.7]} 15. Qd1 {[%clk 0:01:56.5]} 15...
Qd6 {[%clk 0:01:51.7]} 16. h3 {[%clk 0:01:55.5]} 16... Bf5 {[%clk 0:01:50]} 17.
Rb5 {[%clk 0:01:47.3]} 17... a6 {[%clk 0:01:30.1]} 18. Rb2 {[%clk 0:01:45.8]}
18... Re7 {[%clk 0:01:21]} 19. Qa4 {[%clk 0:01:32.1]} 19... Nd7 {[%clk
0:01:15.4]} 20. Nc2 {[%clk 0:01:09.6]} 20... b5 {[%clk 0:00:55.3]} 21. Qxa6
{[%clk 0:00:56.4]} 21... Rb6 {[%clk 0:00:17.1]} 22. Qa8+ {[%clk 0:00:54.4]}
22... Ndb8 {[%clk 0:00:17.2]} 23. cxb5 {[%clk 0:00:39.4]} 23... Ra7 {[%clk
0:00:15.3]} 24. bxc6 {[%clk 0:00:38.8]} 24... Rxa8 {[%clk 0:00:09.6]} 25. Rxb6
{[%clk 0:00:38.1]} 25... Na6 {[%clk 0:00:09.2]} 26. Nc4 {[%clk 0:00:36]} 26...
Qc5 {[%clk 0:00:08.7]} 27. Rfb1 {[%clk 0:00:33.5]} 27... Kh7 {[%clk 0:00:08.3]}
28. R1b5 {[%clk 0:00:31.2]} 28... Qf8 {[%clk 0:00:07.5]} 29. Rxe5 {[%clk
0:00:27.4]} 29... Be6 {[%clk 0:00:07.9]} 30. Be4+ {[%clk 0:00:19.5]} 30... g6
{[%clk 0:00:07.8]} 31. Rxe6 {[%clk 0:00:17]} 31... fxe6 {[%clk 0:00:07.9]} 32.
Rb7+ {[%clk 0:00:17.1]} 32... Kh8 {[%clk 0:00:07.6]} 33. Nxd4 {[%clk 0:00:17.4]}
33... Nc5 {[%clk 0:00:08]} 34. Ne5 {[%clk 0:00:06]} 34... Qf6 {[%clk 0:00:04.4]}
35. Nxg6+ {[%clk 0:00:05]} 35... Kg8 {[%clk 0:00:04.8]} 36. Nf4 {[%clk
0:00:02.9]} 36... Nxb7 {[%clk 0:00:04.4]} 37. cxb7 {[%clk 0:00:03.8]} 37... Rb8
{[%clk 0:00:04.7]} 38. Nfxe6 {[%clk 0:00:03.5]} 38... Qe7 {[%clk 0:00:04.7]} 39.
Bd5 {[%clk 0:00:03.5]} 39... Kh8 {[%clk 0:00:04.4]} 40. e4 {[%clk 0:00:03.5]}
40... Rxb7 {[%clk 0:00:04.5]} 41. Bxb7 {[%clk 0:00:03.5]} 41... Qxb7 {[%clk
0:00:05.1]} 42. Kg2 {[%clk 0:00:02.8]} 42... Qb1 {[%clk 0:00:05.3]} 43. Nf4
{[%clk 0:00:02.4]} 43... Qxa2 {[%clk 0:00:05.4]} 44. Nf5 {[%clk 0:00:02.6]}
44... Qa6 {[%clk 0:00:04.8]} 45. h4 {[%clk 0:00:02.7]} 45... Kh7 {[%clk
0:00:04.9]} 46. h5 {[%clk 0:00:02.9]} 46... Qc6 {[%clk 0:00:04.9]} 47. Ng6
{[%clk 0:00:02.3]} 47... Qa6 {[%clk 0:00:03.8]} 48. Nf8+ {[%clk 0:00:01.5]}
48... Kg8 {[%clk 0:00:03.9]} 49. Ng6 {[%clk 0:00:01.7]} 49... Qxd3 {[%clk
0:00:04]} 0-1

[Event "*** Titled Tuesday Blitz"]
[Site "Chess.com"]
[Date "2021.04.20"]
[Round "3"]
[White "Diego_FloresQ"]
[Black "Manukyan_Artak"]
[Result "1/2-1/2"]
[WhiteElo "2604"]
[BlackElo "2416"]
[TimeControl "180+1"]
[EndTime "10:28:14 PDT"]
[Termination "Game drawn - insufficient material"]

1. e4 {[%clk 0:03:00.9]} 1... c6 {[%clk 0:02:59.4]} 2. d4 {[%clk 0:03:00.6]}
2... d5 {[%clk 0:03:00.3]} 3. Nc3 {[%clk 0:02:59]} 3... dxe4 {[%clk 0:03:00.4]}
4. Nxe4 {[%clk 0:02:59.1]} 4... Nf6 {[%clk 0:03:01.3]} 5. Nxf6+ {[%clk
0:02:59.1]} 5... exf6 {[%clk 0:03:02.2]} 6. c3 {[%clk 0:02:59]} 6... Bd6 {[%clk
0:03:02.7]} 7. Bd3 {[%clk 0:02:58.5]} 7... Na6 {[%clk 0:03:00.3]} 8. Ne2 {[%clk
0:02:56.8]} 8... Nc7 {[%clk 0:02:57.9]} 9. O-O {[%clk 0:02:56.8]} 9... O-O
{[%clk 0:02:55.4]} 10. Bf4 {[%clk 0:02:48.7]} 10... Nd5 {[%clk 0:02:52.6]} 11.
Bxd6 {[%clk 0:02:43.5]} 11... Qxd6 {[%clk 0:02:53.5]} 12. Qd2 {[%clk 0:02:42.7]}
12... Re8 {[%clk 0:02:49.8]} 13. Rfe1 {[%clk 0:02:39.1]} 13... Bg4 {[%clk
0:02:39.7]} 14. Ng3 {[%clk 0:02:33.1]} 14... Qf4 {[%clk 0:02:38]} 15. Rxe8+
{[%clk 0:02:20.8]} 15... Rxe8 {[%clk 0:02:36.1]} 16. Re1 {[%clk 0:02:20.5]}
16... Kf8 {[%clk 0:02:29.5]} 17. Rxe8+ {[%clk 0:01:52.7]} 17... Kxe8 {[%clk
0:02:30.4]} 18. Qe1+ {[%clk 0:01:48.9]} 18... Kd8 {[%clk 0:02:26]} 19. h3 {[%clk
0:01:45.2]} 19... Be6 {[%clk 0:02:15.1]} 20. Ne4 {[%clk 0:01:28.4]} 20... b6
{[%clk 0:02:13.6]} 21. c4 {[%clk 0:01:20]} 21... Ne7 {[%clk 0:02:06.3]} 22. b3
{[%clk 0:01:18.5]} 22... Bf5 {[%clk 0:01:55.3]} 23. Qe3 {[%clk 0:00:52.2]} 23...
Qxe3 {[%clk 0:01:52.6]} 24. fxe3 {[%clk 0:00:53.1]} 24... Bxe4 {[%clk
0:01:51.1]} 25. Bxe4 {[%clk 0:00:52.6]} 25... f5 {[%clk 0:01:51.3]} 26. Bf3
{[%clk 0:00:51.1]} 26... Kc7 {[%clk 0:01:50.5]} 27. Kf2 {[%clk 0:00:50.8]} 27...
g5 {[%clk 0:01:47.5]} 28. g3 {[%clk 0:00:50.6]} 28... f6 {[%clk 0:01:40.8]} 29.
Ke2 {[%clk 0:00:50.3]} 29... Kd6 {[%clk 0:01:40.5]} 30. Kd3 {[%clk 0:00:50.3]}
30... c5 {[%clk 0:01:40.1]} 31. a3 {[%clk 0:00:49.1]} 31... a5 {[%clk
0:01:39.7]} 32. Be2 {[%clk 0:00:45]} 32... Ng6 {[%clk 0:01:38.6]} 33. Bh5 {[%clk
0:00:43.3]} 33... Ne7 {[%clk 0:01:31.6]} 34. Kc3 {[%clk 0:00:43.4]} 34... f4
{[%clk 0:01:01.2]} 35. gxf4 {[%clk 0:00:41.4]} 35... gxf4 {[%clk 0:01:02.1]} 36.
exf4 {[%clk 0:00:41.8]} 36... Nc6 {[%clk 0:01:02.2]} 37. dxc5+ {[%clk
0:00:40.3]} 37... bxc5 {[%clk 0:01:00.9]} 38. Kd3 {[%clk 0:00:35.4]} 38... f5
{[%clk 0:00:54.5]} 39. Bd1 {[%clk 0:00:32.8]} 39... Nd4 {[%clk 0:00:38]} 40. b4
{[%clk 0:00:30.9]} 40... axb4 {[%clk 0:00:37.5]} 41. axb4 {[%clk 0:00:31.8]}
41... Ne6 {[%clk 0:00:37.1]} 42. b5 {[%clk 0:00:26.7]} 42... Nxf4+ {[%clk
0:00:36.4]} 43. Ke3 {[%clk 0:00:25.9]} 43... Nxh3 {[%clk 0:00:33.6]} 44. Bc2
{[%clk 0:00:24.3]} 44... Ng5 {[%clk 0:00:18.3]} 45. Bxf5 {[%clk 0:00:23.7]}
45... h6 {[%clk 0:00:17.7]} 46. Be4 {[%clk 0:00:23.5]} 46... Nf7 {[%clk
0:00:15.9]} 47. Bd5 {[%clk 0:00:21.9]} 47... Ne5 {[%clk 0:00:15.8]} 48. b6
{[%clk 0:00:20.2]} 48... Nd7 {[%clk 0:00:15.3]} 49. b7 {[%clk 0:00:20.6]} 49...
Kc7 {[%clk 0:00:15.5]} 50. Kf4 {[%clk 0:00:20.8]} 50... Nb6 {[%clk 0:00:15.6]}
51. Ke5 {[%clk 0:00:20.3]} 51... h5 {[%clk 0:00:10.7]} 52. Bf3 {[%clk
0:00:15.8]} 52... Nxc4+ {[%clk 0:00:10.1]} 53. Kd5 {[%clk 0:00:16.4]} 53... Na5
{[%clk 0:00:09.6]} 54. Kxc5 {[%clk 0:00:14.6]} 54... Nxb7+ {[%clk 0:00:09.7]}
55. Kd4 {[%clk 0:00:15.1]} 55... h4 {[%clk 0:00:10.5]} 56. Bxb7 {[%clk
0:00:13.9]} 56... Kxb7 {[%clk 0:00:09.5]} 57. Ke3 {[%clk 0:00:14.6]} 57... h3
{[%clk 0:00:10.4]} 58. Kf3 {[%clk 0:00:15.1]} 58... h2 {[%clk 0:00:11.3]} 59.
Kg2 {[%clk 0:00:15.7]} 59... h1=Q+ {[%clk 0:00:12.2]} 60. Kxh1 {[%clk
0:00:16.3]} 1/2-1/2

[Event "*** Titled Tuesday Blitz"]
[Site "Chess.com"]
[Date "2021.04.20"]
[Round "3"]
[White "Tomekas1"]
[Black "mr65"]
[Result "1/2-1/2"]
[WhiteElo "2466"]
[BlackElo "2134"]
[TimeControl "180+1"]
[EndTime "10:28:14 PDT"]
[Termination "Game drawn by stalemate"]

1. e4 {[%clk 0:03:00.9]} 1... e5 {[%clk 0:02:59.3]} 2. Nf3 {[%clk 0:02:59.5]}
2... Nc6 {[%clk 0:02:59.2]} 3. Bc4 {[%clk 0:03:00.1]} 3... Nf6 {[%clk
0:02:58.3]} 4. Ng5 {[%clk 0:03:00.4]} 4... d5 {[%clk 0:02:57.6]} 5. exd5 {[%clk
0:03:01]} 5... Na5 {[%clk 0:02:57.6]} 6. Bb5+ {[%clk 0:03:01]} 6... Bd7 {[%clk
0:02:57.6]} 7. Qe2 {[%clk 0:03:01.1]} 7... Be7 {[%clk 0:02:57.5]} 8. O-O {[%clk
0:02:59.2]} 8... O-O {[%clk 0:02:55.8]} 9. Nc3 {[%clk 0:02:57.3]} 9... h6 {[%clk
0:02:54.3]} 10. Nge4 {[%clk 0:02:54.5]} 10... Nxe4 {[%clk 0:02:53.4]} 11. Nxe4
{[%clk 0:02:54.4]} 11... c6 {[%clk 0:02:34.5]} 12. dxc6 {[%clk 0:02:51.4]} 12...
Nxc6 {[%clk 0:02:34.2]} 13. Bxc6 {[%clk 0:02:49.4]} 13... Bxc6 {[%clk
0:02:32.9]} 14. d3 {[%clk 0:02:50]} 14... f5 {[%clk 0:02:28.1]} 15. Nc3 {[%clk
0:02:49.8]} 15... Bd6 {[%clk 0:02:24.9]} 16. Kh1 {[%clk 0:02:34.9]} 16... Qf6
{[%clk 0:02:24.1]} 17. f4 {[%clk 0:02:14.9]} 17... Rae8 {[%clk 0:02:20.2]} 18.
Qf2 {[%clk 0:02:12.5]} 18... e4 {[%clk 0:01:56.1]} 19. Be3 {[%clk 0:02:05.8]}
19... exd3 {[%clk 0:01:50.9]} 20. cxd3 {[%clk 0:02:06.7]} 20... a6 {[%clk
0:01:44.2]} 21. Bc5 {[%clk 0:02:00.3]} 21... Bxc5 {[%clk 0:01:34.6]} 22. Qxc5
{[%clk 0:02:01.2]} 22... Qg6 {[%clk 0:01:18]} 23. Qf2 {[%clk 0:02:01.2]} 23...
Re3 {[%clk 0:01:10.5]} 24. d4 {[%clk 0:01:41.9]} 24... Rd3 {[%clk 0:01:02.4]}
25. Rad1 {[%clk 0:01:38.4]} 25... Rxd1 {[%clk 0:00:59.9]} 26. Rxd1 {[%clk
0:01:39.3]} 26... Be4 {[%clk 0:00:55.3]} 27. Nxe4 {[%clk 0:01:39.1]} 27... fxe4
{[%clk 0:00:54.8]} 28. Qe3 {[%clk 0:01:36.7]} 28... Qg4 {[%clk 0:00:53.5]} 29.
Rf1 {[%clk 0:01:28.4]} 29... Qf5 {[%clk 0:00:52.6]} 30. g3 {[%clk 0:01:27]}
30... Qd5 {[%clk 0:00:47.2]} 31. b3 {[%clk 0:01:23]} 31... Rd8 {[%clk
0:00:45.6]} 32. Rd1 {[%clk 0:01:20.2]} 32... b5 {[%clk 0:00:42.9]} 33. Kg2
{[%clk 0:01:20.3]} 33... b4 {[%clk 0:00:40.6]} 34. Kf2 {[%clk 0:01:15.8]} 34...
a5 {[%clk 0:00:40.5]} 35. Qd2 {[%clk 0:01:14.6]} 35... Rc8 {[%clk 0:00:31.6]}
36. Rc1 {[%clk 0:01:09.2]} 36... e3+ {[%clk 0:00:25.8]} 37. Qxe3 {[%clk
0:01:03]} 37... Rxc1 {[%clk 0:00:24.5]} 38. Qxc1 {[%clk 0:01:01.8]} 38... Qxd4+
{[%clk 0:00:24.2]} 39. Qe3 {[%clk 0:01:02.4]} 39... Qb2+ {[%clk 0:00:23.5]} 40.
Qe2 {[%clk 0:01:02.8]} 40... Qd4+ {[%clk 0:00:21.6]} 41. Kg2 {[%clk 0:01:03.4]}
41... Qd5+ {[%clk 0:00:21]} 42. Qf3 {[%clk 0:01:02.5]} 42... Qd2+ {[%clk
0:00:20.5]} 43. Qf2 {[%clk 0:01:03.1]} 43... Qd5+ {[%clk 0:00:20.4]} 44. Kh3
{[%clk 0:01:03.4]} 44... Qf5+ {[%clk 0:00:20.2]} 45. g4 {[%clk 0:01:00.6]} 45...
Qd3+ {[%clk 0:00:19.8]} 46. Kh4 {[%clk 0:00:57.9]} 46... Qd8+ {[%clk 0:00:19.4]}
47. Kg3 {[%clk 0:00:56.6]} 47... Qd3+ {[%clk 0:00:18.5]} 48. Qf3 {[%clk
0:00:57.1]} 48... Qb5 {[%clk 0:00:15.5]} 49. Qa8+ {[%clk 0:00:55.9]} 49... Kh7
{[%clk 0:00:15]} 50. Qe4+ {[%clk 0:00:56.4]} 50... Kg8 {[%clk 0:00:14.7]} 51.
Qc4+ {[%clk 0:00:50.7]} 51... Qxc4 {[%clk 0:00:12.1]} 52. bxc4 {[%clk
0:00:51.6]} 52... a4 {[%clk 0:00:12.3]} 53. Kf3 {[%clk 0:00:52.2]} 53... b3
{[%clk 0:00:12.1]} 54. axb3 {[%clk 0:00:52.2]} 54... a3 {[%clk 0:00:12.2]} 55.
c5 {[%clk 0:00:53.1]} 55... Kf8 {[%clk 0:00:10.7]} 56. c6 {[%clk 0:00:54]} 56...
Ke8 {[%clk 0:00:10.4]} 57. g5 {[%clk 0:00:52]} 57... a2 {[%clk 0:00:09]} 58.
gxh6 {[%clk 0:00:52.9]} 58... gxh6 {[%clk 0:00:08.8]} 59. Kg4 {[%clk 0:00:52.5]}
59... Kd8 {[%clk 0:00:08.9]} 60. Kh5 {[%clk 0:00:53.4]} 60... a1=Q {[%clk
0:00:08.5]} 61. Kxh6 {[%clk 0:00:54.3]} 61... Qb2 {[%clk 0:00:08.5]} 62. Kg6
{[%clk 0:00:53.8]} 62... Qxb3 {[%clk 0:00:08.7]} 63. f5 {[%clk 0:00:54.5]} 63...
Qd3 {[%clk 0:00:08.8]} 64. h4 {[%clk 0:00:54.5]} 64... Qg3+ {[%clk 0:00:08.2]}
65. Kf7 {[%clk 0:00:53.3]} 65... Qxh4 {[%clk 0:00:07.9]} 66. f6 {[%clk
0:00:54.2]} 66... Qh7+ {[%clk 0:00:07.5]} 67. Ke6 {[%clk 0:00:54.7]} 67... Kc7
{[%clk 0:00:06.4]} 68. f7 {[%clk 0:00:55.1]} 68... Qg6+ {[%clk 0:00:06.4]} 69.
Ke7 {[%clk 0:00:55.7]} 69... Qg7 {[%clk 0:00:06.5]} 70. Ke8 {[%clk 0:00:56.4]}
70... Qe5+ {[%clk 0:00:06.5]} 71. Kf8 {[%clk 0:00:56.6]} 71... Kxc6 {[%clk
0:00:06.7]} 72. Kg8 {[%clk 0:00:57.3]} 72... Qg5+ {[%clk 0:00:06.7]} 73. Kh8
{[%clk 0:00:57.6]} 73... Qf6+ {[%clk 0:00:06.6]} 74. Kg8 {[%clk 0:00:58.2]}
74... Qg6+ {[%clk 0:00:06.8]} 75. Kh8 {[%clk 0:00:58.7]} 75... Qxf7 {[%clk
0:00:06.3]} 1/2-1/2